bitfinex-derivatives/quotes_BNBF0:USTF0_20241230
["timestamp","ask_amount","ask_price","bid_price","bid_amount"]
[1735585966820,1.47426913,708.62,707.84,1.04805677]
[1735585967719,1.128,708.61,707.84,1.04805677]
[1735585968121,1.128,708.61,707.77,1.04805677]
[1735585968916,1.128,708.61,707.8,1.04805677]
[1735585969917,1.128,708.61,707.75,1.04805677]
[1735585970822,1.128,708.61,707.73,1.04805677]
[1735585971722,1.128,708.61,707.72,1.04805677]
[1735585973125,1.128,708.61,707.74,1.04805677]
[1735585973824,1.128,708.61,707.77,1.04805677]
[1735585975229,1.128,708.61,707.76,1.04805677]
[1735585978028,1.128,708.61,707.77,1.04805677]
[1735585980028,1.128,708.61,707.78,1.04805677]
[1735585980934,1.128,708.61,707.8,1.04805677]
[1735585982033,1.128,708.61,707.48,1.04805677]
[1735585982034,1.128,708.61,707.71,1.04805677]
[1735585982727,1.128,708.61,707.75,1.04805677]
[1735585984131,1.128,708.61,707.7,1.04805677]
[1735585985431,1.128,708.61,707.17,1.25766812]
[1735585985432,1.128,708.61,707.75,1.04805677]
[1735585986333,1.128,708.61,707.79,1.04805677]
[1735585987428,1.128,708.61,707.57,1.04805677]
[1735585987429,1.128,708.61,707.68,1.04805677]
[1735585988732,1.128,708.61,707.7,1.04805677]
[1735585989532,1.128,708.61,707.67,1.04805677]
[1735585990535,1.128,708.61,707.7,1.04805677]
[1735585991339,1.128,708.61,707.75,1.04805677]
[1735585992239,1.128,708.61,707.74,1.04805677]
[1735585993339,1.128,708.61,707.77,1.04805677]
[1735585994633,1.128,708.61,707.8,1.04805677]
[1735585994938,1.47426913,708.62,707.8,1.04805677]
[1735585995539,1.47426913,708.62,707.76,1.04805677]
[1735585995933,1.128,708.61,707.76,1.04805677]
[1735585996839,1.128,708.61,707.75,1.04805677]
[1735585998039,1.128,708.61,707.84,1.04805677]
[1735585999343,1.128,708.61,707.86,1.04805677]
[1735586000242,1.128,708.61,707.84,1.04805677]
[1735586001043,0.28224668,708.6,707.84,1.04805677]
[1735586001443,0.28224668,708.6,707.83,1.04805677]
[1735586002246,0.28224668,708.6,707.36,1.25766812]
[1735586002247,0.28224668,708.6,707.71,1.04805677]
[1735586003649,0.28224668,708.6,707.68,1.04805677]
[1735586004448,0.28224668,708.6,707.67,1.04805677]
[1735586005243,0.25974125,708.59,707.67,1.04805677]
[1735586005546,0.25974125,708.59,707.62,1.04805677]
[1735586005844,0.28224668,708.6,707.62,1.04805677]
[1735586006041,0.25975235,708.59,707.62,1.04805677]
[1735586006748,0.25975235,708.59,707.56,1.04805677]
[1735586008349,0.25977273,708.58,707.45,1.04805677]
[1735586008548,0.25977273,708.57,707.45,1.04805677]
[1735586008746,0.25977273,708.56,707.45,1.04805677]
[1735586009045,0.28224668,708.6,707.45,1.04805677]
[1735586009241,0.25978846,708.59,707.45,1.04805677]
[1735586009548,0.28225863,708.57,707.29,1.04805677]
[1735586010347,0.28225863,708.57,707.25,1.04805677]
[1735586011448,0.28225863,708.57,707.24,1.04805677]
[1735586012448,0.28225863,708.57,707.23,1.04805677]
[1735586012748,0.25979296,708.56,707.23,1.04805677]
[1735586013248,1.034,708.55,707.23,1.04805677]
[1735586013647,0.28227058,708.54,707.22,1.04805677]
[1735586013947,1.75741461,708.54,707.22,1.04805677]
[1735586015349,1.75741461,708.54,707.16,1.04805677]
[1735586016050,1.75741461,708.54,706.38,2.13978257]
[1735586016051,1.75741461,708.54,707.11,1.04805677]
[1735586017253,1.75741461,708.54,706.25,2.13978257]
[1735586017254,1.75741461,708.54,707.08,1.04805677]
[1735586018152,1.75741461,708.54,707.07,1.04805677]
[1735586019352,1.75741461,708.54,707.08,1.04805677]
[1735586020654,1.75741461,708.54,707.1,1.04805677]
[1735586020856,0.25980231,708.53,707.1,1.04805677]
[1735586021047,1.75741461,708.54,707.1,1.04805677]
[1735586022654,1.75741461,708.54,707.11,1.04805677]
[1735586023459,1.75741461,708.54,706.29,2.13978257]
[1735586023460,0.25979964,708.53,707.09,1.04805677]
[1735586024055,0.28227855,708.52,707.09,1.04805677]
[1735586024351,0.2597983,708.51,707.09,1.04805677]
[1735586024556,0.2597983,708.51,706.8,1.04805677]
[1735586024557,0.2597983,708.51,707.15,1.04805677]
[1735586024757,0.28228652,708.5,707.15,1.04805677]
[1735586025454,0.28228652,708.5,707.18,1.04805677]
[1735586025657,0.259794,708.49,707.18,1.04805677]
[1735586025855,0.28229448,708.48,707.18,1.04805677]
[1735586026259,0.28229448,708.48,707.17,1.04805677]
[1735586027161,0.28229448,708.48,707.16,1.04805677]
[1735586028564,0.28229448,708.48,707.21,1.04805677]
[1735586029968,0.28229448,708.48,707.39,1.04805677]
[1735586030966,0.28229448,708.48,706.82,1.25766812]
[1735586030967,0.28229448,708.48,707.45,1.04805677]
[1735586031969,0.28229448,708.48,707.53,1.04805677]
[1735586033265,0.809,708.47,707.53,1.04805677]
[1735586033467,0.809,708.47,707.14,1.04805677]
[1735586033468,0.809,708.47,707.45,1.04805677]
[1735586033868,1.47482103,708.46,707.45,1.04805677]
[1735586034868,1.47482103,708.46,707.44,1.04805677]
[1735586035771,1.47482103,708.46,707.46,1.04805677]
[1735586037772,1.47482103,708.46,707.45,1.04805677]
[1735586038767,1.47482103,708.46,707.14,1.04805677]
[1735586038768,1.47482103,708.46,707.44,1.04805677]
[1735586039874,1.47482103,708.46,707.43,1.04805677]
[1735586040875,1.47482103,708.46,707.0,0.74775989]
[1735586040876,1.47482103,708.46,707.41,1.04805677]
[1735586041770,1.47482103,708.46,707.39,1.04805677]
[1735586042575,1.47482103,708.46,707.45,1.04805677]
[1735586043578,1.47482103,708.46,707.53,1.04805677]
[1735586044874,1.47482103,708.46,707.49,1.04805677]
[1735586045475,0.28230644,708.45,707.49,1.04805677]
[1735586046181,0.28230644,708.45,707.02,0.74775989]
[1735586046182,0.28230644,708.45,707.37,1.04805677]
[1735586047177,0.28230644,708.45,707.36,1.04805677]
[1735586048177,0.28230644,708.45,707.3,1.04805677]
[1735586050977,0.28230644,708.45,707.33,1.04805677]
[1735586052580,0.804,708.44,707.34,1.04805677]
[1735586053574,0.804,708.44,707.38,1.04805677]
[1735586054884,0.804,708.44,707.41,1.04805677]
[1735586056384,0.804,708.44,707.43,1.04805677]
[1735586057379,0.804,708.44,707.46,1.04805677]
[1735586058387,0.804,708.44,707.48,1.04805677]
[1735586060689,0.804,708.44,707.53,1.04805677]
[1735586061686,0.804,708.44,707.58,1.04805677]
[1735586062489,0.804,708.44,707.6,1.04805677]
[1735586062685,0.804,708.44,702.32,5.77417467]
[1735586062891,0.804,708.44,705.53,2.89165836]
[1735586063089,0.804,708.44,705.54,2.89165836]
[1735586063290,0.804,708.44,705.55,5.28615917]
[1735586063490,0.804,708.44,705.56,5.28615917]
[1735586063789,0.804,708.44,705.57,5.28615917]
[1735586063991,0.804,708.44,705.58,2.89165836]
[1735586064191,0.804,708.44,705.59,2.89165836]
[1735586064385,0.804,708.44,704.42,8.22291427]
[1735586064386,0.804,708.44,705.6,5.28615917]
[1735586064586,0.804,708.44,705.61,5.28615917]
[1735586064789,0.804,708.44,705.62,5.28615917]
[1735586064992,0.804,708.44,705.63,2.89165836]
[1735586065190,0.804,708.44,705.64,2.89165836]
[1735586065393,0.804,708.44,705.65,5.28615917]
[1735586065594,0.804,708.44,707.65,1.04649175]
[1735586067592,0.804,708.44,707.63,1.04649175]
[1735586068693,0.804,708.44,707.06,2.13658733]
[1735586068694,0.804,708.44,707.6,1.04649175]
[1735586069795,0.804,708.44,707.62,1.04649175]
[1735586070795,0.804,708.44,707.61,1.04649175]
[1735586071791,0.804,708.44,707.63,1.04649175]
[1735586073299,0.804,708.44,707.66,1.04649175]
[1735586074299,0.804,708.44,707.71,1.04649175]
[1735586075199,0.804,708.44,707.72,1.04649175]
[1735586076101,0.804,708.44,707.11,2.13658733]
[1735586076102,0.804,708.44,707.73,1.04649175]
[1735586076699,0.28230644,708.45,707.73,1.04649175]
[1735586077096,0.28230644,708.45,707.71,1.04649175]
[1735586077999,0.835,708.44,707.71,1.04649175]
[1735586078696,0.835,708.44,707.77,1.04649175]
[1735586079595,0.835,708.44,707.76,1.04649175]
[1735586081002,0.835,708.44,707.73,1.04649175]
[1735586081796,0.835,708.44,707.75,1.04649175]
[1735586082701,0.835,708.44,707.76,1.04649175]
[1735586084099,0.835,708.44,707.75,1.04649175]
[1735586085098,0.835,708.44,707.79,1.04649175]
[1735586085697,0.835,708.44,707.83,1.04649175]
[1735586086705,0.835,708.44,707.79,1.04649175]
[1735586087702,0.835,708.44,707.8,1.04649175]
[1735586088900,0.835,708.44,707.83,1.04649175]
[1735586090000,0.835,708.44,707.84,1.04649175]
[1735586091102,0.835,708.44,707.85,1.04649175]
[1735586092106,0.835,708.44,707.84,1.04649175]
[1735586093206,0.835,708.44,707.85,1.04649175]
[1735586094202,0.835,708.44,707.83,1.04649175]
[1735586095203,0.835,708.44,707.84,1.04649175]
[1735586096707,0.835,708.44,707.86,1.04649175]
[1735586097405,0.835,708.44,707.82,1.04649175]
[1735586098601,0.835,708.44,707.84,1.04649175]
[1735586100009,0.835,708.44,707.77,1.04649175]
[1735586100908,0.835,708.44,707.15,2.13658733]
[1735586100909,0.835,708.44,707.69,1.04649175]
[1735586101710,0.835,708.44,707.67,1.04649175]
[1735586102003,0.28230644,708.45,707.67,1.04649175]
[1735586102913,0.28230644,708.45,706.62,2.13658733]
[1735586102914,0.28230644,708.45,707.7,1.04649175]
[1735586103105,1.09,708.44,707.7,1.04649175]
[1735586104204,1.09,708.44,707.76,1.04649175]
[1735586105009,1.09,708.44,707.75,1.04649175]
[1735586106513,1.09,708.44,707.44,1.04649175]
[1735586106514,1.09,708.44,707.78,1.04649175]
[1735586107811,1.09,708.44,707.79,1.04649175]
[1735586108918,1.09,708.44,707.82,1.04649175]
[1735586111221,1.09,708.44,707.79,1.04649175]
[1735586113017,1.09,708.44,707.81,1.04649175]
[1735586113619,1.4745971,708.43,707.81,1.04649175]
[1735586114023,1.4745971,708.43,707.64,1.04649175]
[1735586114821,1.4745971,708.43,707.56,1.04649175]
[1735586117422,1.4745971,708.43,707.58,1.04649175]
[1735586118422,1.4745971,708.43,707.64,1.04649175]
[1735586119518,1.4745971,708.43,707.65,1.04649175]
[1735586120721,1.4745971,708.43,707.64,1.04649175]
[1735586121825,1.4745971,708.43,707.72,1.04649175]
[1735586124227,1.4745971,708.43,707.76,1.04649175]
[1735586125627,1.4745971,708.43,707.7,1.04649175]
[1735586126730,1.4745971,708.43,707.68,1.04649175]
[1735586127729,1.4745971,708.43,706.87,2.13658733]
[1735586127730,1.4745971,708.43,707.66,1.04649175]
[1735586128527,0.28230644,708.45,707.66,1.04649175]
[1735586129029,1.47457106,708.51,707.66,1.04649175]
[1735586129230,1.47457106,708.51,707.69,1.04649175]
[1735586129423,1.129,708.5,707.69,1.04649175]
[1735586130835,1.129,708.5,707.81,1.04649175]
[1735586131926,1.129,708.5,707.86,1.04649175]
[1735586133130,1.129,708.5,707.87,1.04649175]
[1735586134235,1.129,708.5,707.92,1.04649175]
[1735586135233,1.129,708.5,707.94,1.04649175]
[1735586136235,1.129,708.5,707.92,1.04649175]
[1735586137539,1.129,708.5,707.95,1.04649175]
[1735586138531,1.129,708.5,707.96,1.04649175]
[1735586139739,1.129,708.5,707.99,1.04649175]
[1735586140437,1.129,708.5,707.42,2.13658733]
[1735586140438,1.129,708.5,707.98,1.04649175]
[1735586141431,1.129,708.5,707.97,1.04649175]
[1735586142233,1.129,708.5,707.96,1.04649175]
[1735586143437,1.129,708.5,707.97,1.04649175]
[1735586144440,1.129,708.5,707.99,1.04649175]
[1735586145341,1.129,708.5,707.79,1.04649175]
[1735586145342,1.129,708.5,707.97,1.04649175]
[1735586146135,1.129,708.5,707.89,1.04649175]
[1735586147437,1.129,708.5,707.84,1.04649175]
[1735586148450,1.129,708.5,707.58,1.04649175]
[1735586148451,1.129,708.5,707.85,1.04649175]
[1735586149542,1.129,708.5,707.84,1.04649175]
[1735586150645,1.129,708.5,707.83,1.04649175]
[1735586155348,1.47432639,708.64,707.83,1.04649175]
[1735586155949,1.47432639,708.64,707.54,1.04649175]
[1735586155950,1.47432639,708.64,707.93,1.04649175]
[1735586156653,1.051,708.63,707.93,1.04649175]
[1735586157153,1.051,708.63,707.94,1.04649175]
[1735586161259,1.051,708.63,707.96,1.04649175]
[1735586162464,1.051,708.63,707.98,1.04649175]
[1735586163261,1.051,708.63,708.08,1.04649175]
[1735586164565,1.051,708.63,708.11,1.04649175]
[1735586166100,1.051,708.63,708.12,1.04649175]
[1735586166874,1.051,708.63,708.04,1.04649175]
[1735586167764,1.051,708.63,707.33,2.13658733]
[1735586167765,1.051,708.63,708.06,1.04649175]
[1735586169067,1.051,708.63,708.02,1.04649175]
[1735586170270,1.051,708.63,708.0,1.04649175]
[1735586171270,1.051,708.63,708.01,1.04649175]
[1735586172368,1.051,708.63,707.76,1.04649175]
[1735586172369,1.051,708.63,708.02,1.04649175]
[1735586172571,1.47395692,708.77,708.02,1.04649175]
[1735586173271,1.47395692,708.77,707.9,1.04649175]
[1735586173773,0.823,708.76,707.9,1.04649175]
[1735586174172,0.823,708.76,707.93,1.04649175]
[1735586175368,0.823,708.76,707.88,1.04649175]
[1735586176174,0.823,708.76,707.89,1.04649175]
[1735586177577,0.823,708.76,707.29,2.13658733]
[1735586177578,0.823,708.76,707.87,1.04649175]
[1735586178981,0.823,708.76,707.84,1.04649175]
[1735586179780,0.5418616,708.75,707.84,1.04649175]
[1735586179980,0.25967466,708.74,707.72,1.04649175]
[1735586180876,0.28218694,708.75,707.72,1.04649175]
[1735586181075,0.25967301,708.74,707.72,1.04649175]
[1735586181477,0.28218694,708.75,707.7,1.04649175]
[1735586182078,0.28218694,708.75,707.67,1.04649175]
[1735586183082,0.28218694,708.75,707.71,1.04649175]
[1735586184584,0.28218694,708.75,707.73,1.04649175]
[1735586185680,0.28218694,708.75,707.63,1.04649175]
[1735586186689,0.28218694,708.75,707.58,1.04649175]
[1735586187584,0.28218694,708.75,707.57,1.04649175]
[1735586188690,0.28218694,708.75,707.56,1.04649175]
[1735586190090,0.28218694,708.75,707.55,1.04649175]
[1735586190891,1.128,708.74,707.55,1.04649175]
[1735586191091,0.28219491,708.73,707.53,1.04649175]
[1735586194196,0.28219491,708.73,707.63,1.04649175]
[1735586195496,0.28219491,708.73,707.66,1.04649175]
[1735586196292,0.28219491,708.73,707.78,1.04649175]
[1735586198398,0.28219491,708.73,707.74,1.04649175]
[1735586199398,0.28219491,708.73,707.77,1.04649175]
[1735586200199,0.28219491,708.73,707.78,1.04649175]
[1735586201403,0.28219491,708.73,707.82,1.04649175]
[1735586201997,1.47427954,708.72,707.82,1.04649175]
[1735586202596,1.47427954,708.72,707.85,1.04649175]
[1735586204005,1.47427954,708.72,707.86,1.04649175]
[1735586204804,1.47427954,708.72,707.87,1.04649175]
[1735586206806,1.47427954,708.72,707.92,1.04649175]
[1735586207907,1.47427954,708.72,707.96,1.04649175]
[1735586209108,1.47427954,708.72,708.01,1.04649175]
[1735586210102,1.47427954,708.72,708.03,1.04649175]
[1735586212108,1.47427954,708.72,707.5,2.13658733]
[1735586212109,1.47427954,708.72,707.97,1.04649175]
[1735586213208,1.47427954,708.72,707.98,1.04649175]
[1735586214211,1.47427954,708.72,707.96,1.04649175]
[1735586216510,1.47427954,708.72,707.97,1.04649175]
[1735586217308,1.47427954,708.72,707.99,1.04649175]
[1735586218608,1.47427954,708.72,708.0,1.04649175]
[1735586219615,1.47427954,708.72,707.98,1.04649175]
[1735586220709,1.47427954,708.72,707.99,1.04649175]
[1735586221411,1.47427954,708.72,708.03,1.04649175]
[1735586222015,1.018,708.71,708.03,1.04649175]
[1735586222410,1.018,708.71,708.04,1.04649175]
[1735586224519,1.018,708.71,708.05,1.04649175]
[1735586225820,1.018,708.71,707.96,1.04649175]
[1735586226819,1.018,708.71,707.98,1.04649175]
[1735586228324,1.018,708.71,707.99,1.04649175]
[1735586229224,1.018,708.71,708.04,1.04649175]
[1735586230319,1.018,708.71,707.32,2.13658733]
[1735586230320,1.018,708.71,708.03,1.04649175]
[1735586231825,1.018,708.71,707.91,1.04649175]
[1735586233819,1.018,708.71,706.92,2.13658733]
[1735586233820,1.018,708.71,708.01,1.04649175]
[1735586234621,1.018,708.71,707.99,1.04649175]
[1735586235728,1.018,708.71,707.96,1.04649175]
[1735586236822,1.018,708.71,707.94,1.04649175]
[1735586237026,1.47427954,708.72,707.94,1.04649175]
[1735586238125,1.128,708.71,707.94,1.04649175]
[1735586238827,1.128,708.71,707.47,1.04649175]
[1735586238828,1.128,708.71,707.98,1.04649175]
[1735586239528,1.128,708.71,708.13,1.04649175]
[1735586240627,1.128,708.71,708.11,1.04649175]
[1735586241530,1.128,708.71,708.12,1.04649175]
[1735586242432,1.128,708.71,708.09,1.04649175]
[1735586243330,1.128,708.71,708.06,1.04649175]
[1735586245334,1.128,708.71,707.81,1.04649175]
[1735586245335,1.128,708.71,708.03,1.04649175]
[1735586246535,1.128,708.71,707.99,1.04649175]
[1735586247435,1.128,708.71,708.0,1.04649175]
[1735586248336,1.128,708.71,707.97,1.04649175]
[1735586249336,1.128,708.71,707.99,1.04649175]
[1735586251429,1.128,708.71,708.0,1.04649175]
[1735586252833,1.128,708.71,708.02,1.04649175]
[1735586254136,1.128,708.71,707.32,0.74955858]
[1735586254137,1.128,708.71,708.1,1.04649175]
[1735586254934,1.128,708.71,708.14,1.04649175]
[1735586256136,1.128,708.71,708.12,1.04649175]
[1735586257430,1.128,708.71,708.15,1.04649175]
[1735586258740,1.128,708.71,708.06,1.04649175]
[1735586261139,1.128,708.71,708.07,1.04649175]
[1735586261340,1.47379566,708.91,708.07,1.04649175]
[1735586261934,1.47379566,708.91,708.05,1.04649175]
[1735586262538,0.949,708.9,708.05,1.04649175]
[1735586263343,0.949,708.9,708.08,1.04649175]
[1735586264453,0.949,708.9,708.16,1.04649175]
[1735586265642,0.949,708.9,708.17,1.04649175]
[1735586266940,0.949,708.9,708.25,1.04649175]
[1735586267945,0.949,708.9,708.3,1.04649175]
[1735586269252,0.949,708.9,708.27,1.04649175]
[1735586270346,0.949,708.9,707.61,2.13658733]
[1735586270347,0.949,708.9,708.2,1.04649175]
[1735586272951,0.949,708.9,708.18,1.04649175]
[1735586273754,0.949,708.9,707.47,2.13658733]
[1735586273755,0.949,708.9,708.21,1.04649175]
[1735586274753,0.949,708.9,708.19,1.04649175]
[1735586275855,0.949,708.9,708.18,1.04649175]
[1735586276653,0.949,708.9,708.2,1.04649175]
[1735586279055,0.949,708.9,708.25,1.04649175]
[1735586279950,0.949,708.9,708.26,1.04649175]
[1735586281656,0.949,708.9,708.23,1.04649175]
[1735586282655,1.47379566,708.91,708.21,1.04649175]
[1735586283851,1.128,708.9,708.16,1.04649175]
[1735586285457,1.128,708.9,708.15,1.04649175]
[1735586286555,1.128,708.9,708.14,1.04649175]
[1735586287958,1.128,708.9,708.15,1.04649175]
[1735586289057,1.128,708.9,707.48,2.13658733]
[1735586289058,1.128,708.9,708.05,1.04649175]
[1735586289760,1.128,708.9,707.99,1.04649175]
[1735586290659,1.128,708.9,707.97,1.04649175]
[1735586290855,0.28213121,708.89,707.97,1.04649175]
[1735586292062,0.28213121,708.89,707.89,1.04649175]
[1735586293261,0.28213121,708.89,707.87,1.04649175]
[1735586294261,0.28213121,708.89,707.89,1.04649175]
[1735586295266,0.28213121,708.89,707.88,1.04649175]
[1735586298965,0.28213121,708.89,707.89,1.04649175]
[1735586300360,0.28213121,708.89,707.88,1.04649175]
[1735586301361,0.28213121,708.89,707.91,1.04649175]
[1735586302164,0.28213121,708.89,707.94,1.04649175]
[1735586302960,1.128,708.88,707.94,1.04649175]
[1735586303370,1.128,708.88,707.96,1.04649175]
[1735586304666,1.128,708.88,707.99,1.04649175]
[1735586306869,1.128,708.88,707.95,1.04649175]
[1735586307669,1.128,708.88,707.21,2.13658733]
[1735586307670,1.128,708.88,707.97,1.04649175]
[1735586307871,1.128,708.88,707.31,0.28276144]
[1735586309570,1.128,708.88,707.34,0.28274945]
[1735586310666,1.128,708.88,708.07,1.04853289]
[1735586311671,1.128,708.88,707.81,1.04853289]
[1735586311672,1.128,708.88,708.06,1.04853289]
[1735586312865,1.128,708.88,708.09,1.04853289]
[1735586313966,1.128,708.88,708.19,1.04853289]
[1735586314774,1.128,708.88,708.23,1.04853289]
[1735586315670,1.128,708.88,708.15,1.04853289]
[1735586316777,1.128,708.88,708.14,1.04853289]
[1735586317677,1.128,708.88,708.16,1.04853289]
[1735586318070,0.28213121,708.89,708.16,1.04853289]
[1735586318381,1.0557065,709.88,708.16,1.04853289]
[1735586318577,1.47351484,709.01,708.11,1.04853289]
[1735586318770,0.28174569,709.86,708.11,1.04853289]
[1735586318974,1.47348884,709.01,708.11,1.04853289]
[1735586319175,0.28174569,709.86,708.11,1.04853289]
[1735586319477,1.099,709.0,708.06,1.04853289]
[1735586321782,1.099,709.0,707.99,1.04853289]
[1735586322879,1.099,709.0,707.97,1.04853289]
[1735586323978,1.099,709.0,708.0,1.04853289]
[1735586324880,1.099,709.0,708.14,1.04853289]
[1735586325781,1.099,709.0,707.34,0.28274945]
[1735586325782,1.099,709.0,708.18,1.04853289]
[1735586327388,1.099,709.0,708.22,1.04853289]
[1735586328189,1.099,709.0,708.05,1.04853289]
[1735586328886,1.099,709.0,708.03,1.04853289]
[1735586329989,1.099,709.0,708.05,1.04853289]
[1735586331182,1.099,709.0,708.03,1.04853289]
[1735586332190,1.099,709.0,707.69,1.04853289]
[1735586332191,1.099,709.0,708.02,1.04853289]
[1735586333493,1.099,709.0,708.01,1.04853289]
[1735586334090,1.099,709.0,708.03,1.04853289]
[1735586335095,1.099,709.0,708.1,1.04853289]
[1735586336291,1.099,709.0,708.08,1.04853289]
[1735586337092,1.099,709.0,708.24,1.04853289]
[1735586338295,1.099,709.0,708.18,1.04853289]
[1735586340593,1.099,709.0,708.15,1.04853289]
[1735586341296,1.47344725,709.02,708.15,1.04853289]
[1735586341797,1.47344725,709.02,708.16,1.04853289]
[1735586342489,0.849,709.01,708.16,1.04853289]
[1735586342988,0.849,709.01,708.22,1.04853289]
[1735586344890,0.849,709.01,708.27,1.04853289]
[1735586345897,0.849,709.01,708.35,1.04853289]
[1735586346691,0.849,709.01,708.37,1.04853289]
[1735586347097,0.849,709.01,699.73,5.00578564]
[1735586347296,0.849,709.01,705.77,2.88251965]
[1735586347496,0.849,709.01,705.78,2.88251965]
[1735586347697,0.849,709.01,705.79,5.27084013]
[1735586347895,0.849,709.01,705.8,2.88251965]
[1735586348198,0.849,709.01,705.81,2.88251965]
[1735586348397,0.849,709.01,705.82,5.27084013]
[1735586348597,0.849,709.01,705.83,5.27084013]
[1735586348795,0.849,709.01,705.84,5.27084013]
[1735586348997,0.849,709.01,705.85,2.88251965]
[1735586349197,0.849,709.01,705.86,2.88251965]
[1735586349396,0.849,709.01,705.87,2.88251965]
[1735586349598,0.849,709.01,705.88,2.88251965]
[1735586349792,0.849,709.01,705.89,3.76097203]
[1735586349996,0.849,709.01,708.36,1.04812865]
[1735586351095,0.849,709.01,708.37,1.04812865]
[1735586352098,0.849,709.01,708.38,1.04812865]
[1735586353299,0.849,709.01,708.4,1.04812865]
[1735586354901,0.849,709.01,708.44,1.04812865]
[1735586356098,0.849,709.01,708.4,1.04812865]
[1735586357004,0.849,709.01,708.33,1.04812865]
[1735586357905,0.849,709.01,708.37,1.04812865]
[1735586358902,0.849,709.01,708.39,1.04812865]
[1735586359604,0.849,709.01,707.6,1.25775438]
[1735586359605,0.849,709.01,708.38,1.04812865]
[1735586361007,0.849,709.01,708.53,1.04812865]
[1735586361705,0.849,709.01,708.52,1.04812865]
[1735586363008,0.849,709.01,708.48,1.04812865]
[1735586364205,0.849,709.01,708.47,1.04812865]
[1735586365209,0.849,709.01,708.49,1.04812865]
[1735586366512,0.849,709.01,708.5,1.04812865]
[1735586367511,0.849,709.01,707.73,2.13992933]
[1735586367512,0.849,709.01,708.52,1.04812865]
[1735586369014,0.849,709.01,708.51,1.04812865]
[1735586370114,0.849,709.01,708.48,1.04812865]
[1735586370913,0.849,709.01,708.55,1.04812865]
[1735586371610,1.47322374,709.13,708.55,1.04812865]
[1735586372211,1.47322374,709.13,708.52,1.04812865]
[1735586372611,1.008,709.12,708.52,1.04812865]
[1735586373014,1.008,709.12,708.57,1.04812865]
[1735586375122,1.008,709.12,708.58,1.04812865]
[1735586376320,1.008,709.12,708.59,1.04812865]
[1735586377222,1.008,709.12,708.61,1.04812865]
[1735586378321,1.008,709.12,708.59,1.04812865]
[1735586379319,1.008,709.12,708.61,1.04812865]
[1735586380220,1.008,709.12,708.63,1.04812865]
[1735586381620,1.008,709.12,708.62,1.04812865]
[1735586382617,1.008,709.12,707.92,2.13992933]
[1735586382618,1.008,709.12,708.66,1.04812865]
[1735586383718,1.008,709.12,708.65,1.04812865]
[1735586385025,1.008,709.12,708.63,1.04812865]
[1735586386828,1.008,709.12,708.64,1.04812865]
[1735586388225,1.008,709.12,708.6,1.04812865]
[1735586389523,1.008,709.12,708.61,1.04812865]
[1735586390328,1.008,709.12,708.6,1.04812865]
[1735586391225,1.008,709.12,708.62,1.04812865]
[1735586392330,1.008,709.12,708.61,1.04812865]
[1735586393630,1.008,709.12,708.55,1.04812865]
[1735586394732,1.008,709.12,708.54,1.04812865]
[1735586395630,1.47300029,709.17,708.54,1.04812865]
[1735586395830,1.47300029,709.17,708.53,1.04812865]
[1735586396728,0.797,709.16,708.53,1.04812865]
[1735586398032,0.797,709.16,707.84,2.13992933]
[1735586398033,0.797,709.16,708.54,1.04812865]
[1735586400239,0.797,709.16,708.57,1.04812865]
[1735586401436,0.797,709.16,708.56,1.04812865]
[1735586402742,0.797,709.16,708.53,1.04812865]
[1735586404140,0.797,709.16,708.26,1.04812865]
[1735586404141,0.797,709.16,708.58,1.04812865]
[1735586405939,0.797,709.16,708.57,1.04812865]
[1735586406840,0.797,709.16,708.63,1.04812865]
[1735586407640,0.797,709.16,708.67,1.04812865]
[1735586410645,0.797,709.16,708.65,1.04812865]
[1735586411647,0.797,709.16,708.64,1.04812865]
[1735586414646,0.797,709.16,707.9,2.13992933]
[1735586414647,0.797,709.16,708.68,1.04812865]
[1735586415650,0.797,709.16,708.67,1.04812865]
[1735586416643,0.797,709.16,708.7,1.04812865]
[1735586417849,0.797,709.16,708.68,1.04812865]
[1735586418852,0.797,709.16,708.67,1.04812865]